fUST/lending_fUST_20240226
["ID","MTS","AMOUNT","RATE_DAILY","PERIOD"]
[315158619,1708895444238,-153.0,0.00019726,2]
[315158622,1708895444249,-153.0,0.00019726,2]
[315158624,1708895444259,-363.22321566,0.00019756,2]
[315158626,1708895444270,-200.5569553,0.000198,2]
[315158628,1708895444281,-153.0,0.000198,2]
[315158630,1708895444291,-431.2948905,0.000198,2]
[315158632,1708895444302,-2992.02782238,0.000198,2]
[315158634,1708895444313,-151.0,0.000198,2]
[315158636,1708895444323,-2992.0278223,0.00019811,2]
[315158639,1708895444337,-2992.0278223,0.00019822,2]
[315158640,1708895444348,-2992.0278223,0.00019833,2]
[315158641,1708895444361,-2992.0278223,0.00019844,2]
[315158642,1708895444372,-2992.0278223,0.00019856,2]
[315158643,1708895444384,-2992.0278223,0.00019867,2]
[315158644,1708895444395,-2992.0278223,0.00019878,2]
[315158645,1708895444407,-639.483535,0.00019878,2]
[315158646,1708895444419,-639.483535,0.00019878,2]
[315158647,1708895444431,-2992.0278223,0.00019889,2]
[315158648,1708895444443,-500.0,0.00019889,2]
[315158649,1708895444455,-500.0,0.00019889,2]
[315158650,1708895444468,-500.0,0.00019889,2]
[315158651,1708895444480,-500.0,0.00019889,2]
[315158652,1708895444491,-500.0,0.00019889,2]
[315158653,1708895444504,-642.25703109,0.00019889,2]
[315158654,1708895444516,-279.29347498,0.00019889,2]
[315158657,1708895444527,-639.483535,0.0001989,2]
[315158659,1708895444538,-639.483535,0.0001989,2]
[315158661,1708895444549,-151.0,0.0001989,2]
[315158663,1708895444560,-275.394671,0.0001989,2]
[315158665,1708895444571,-238046.79302377,0.0001989,2]
[315158691,1708895444819,-23110.964184,0.0001989,2]
[315158702,1708895444920,-14842.24279223,0.0001989,2]
[315158704,1708895444931,-49439.26021597,0.000199,2]
[315158706,1708895444946,-2992.0278223,0.000199,2]
[315158708,1708895444957,-580.0,0.000199,2]
[315158710,1708895444965,-169.0,0.00019998,2]
[315158712,1708895444976,-372.370727,0.00019998,2]
[315158714,1708895444985,-840.44384259,0.00019999,2]
[315158716,1708895444995,-10967.56256094,0.00019999,2]
[315158718,1708895445004,-151.0,0.00019999,2]
[315158720,1708895445015,-151.0,0.00019999,2]
[315158722,1708895445028,-151.0,0.00019999,2]
[315158724,1708895445037,-218997.07941441,0.0002,2]
[315158736,1708895445146,-500.0,0.00019178,2]
[315158738,1708895445156,-6924.0,0.0002,2]
[315158740,1708895445170,-4331.866208,0.0002,2]
[315158742,1708895445183,-348.89256572,0.0002,2]
[315158832,1708895446055,-8855.91303883,0.0001988,3]
[315158841,1708895446123,-12022.66019982,0.0001988,3]
[315158843,1708895446134,-305.53024882,0.0001988,3]
[315160029,1708895633589,500.0,0.00021917,30]
[315160030,1708895634177,534.16415823,0.00021917,30]
[315160045,1708895923447,151.03020604,0.00021462,30]
[315160046,1708895923518,151.03020604,0.00021032,120]
[315160090,1708896273818,151.04531359,0.00021614,30]
[315160091,1708896273875,151.04531359,0.00021182,120]
[315160136,1708896632350,-290.57857256,0.00019078,2]
[315160138,1708896632360,-290.57857252,0.00019147,2]
[315160140,1708896632369,-336.95018396,0.00019176,2]
[315160142,1708896632378,-1373.14417306,0.00019177,2]
[315160144,1708896632387,-500.0,0.00019177,2]
[315160146,1708896632396,-167.6391983,0.00019178,2]
[315160148,1708896632405,-500.0,0.00019178,2]
[315160150,1708896632416,-500.0,0.00019178,2]
[315160152,1708896632426,-500.0,0.00019178,2]
[315160154,1708896632436,-243.58118859,0.00019178,2]
[315160156,1708896632446,-500.0,0.00019178,2]
[315160158,1708896632456,-500.0,0.00019178,2]
[315160160,1708896632466,-500.0,0.00019178,2]
[315160162,1708896632476,-319.09963093,0.00019178,2]
[315160164,1708896632486,-500.67599699,0.00019178,2]
[315160166,1708896632495,-500.0,0.00019178,2]
[315160168,1708896632504,-502.42020174,0.00019178,2]
[315160170,1708896632514,-500.0,0.00019178,2]
[315160172,1708896632523,-521.99192232,0.00019178,2]
[315160174,1708896632533,-500.0,0.00019178,2]
[315160176,1708896632543,-500.0,0.00019178,2]
[315160178,1708896632552,-500.0,0.00019178,2]
[315160180,1708896632561,-500.0,0.00019178,2]
[315160182,1708896632570,-500.0,0.00019178,2]
[315160184,1708896632579,-500.0,0.00019178,2]
[315160185,1708896632588,-500.0,0.00019178,2]
[315160186,1708896632597,-500.0,0.00019178,2]
[315160187,1708896632606,-1602.66,0.00019178,2]
[315160188,1708896632615,-500.0,0.00019178,2]
[315160189,1708896632625,-500.0,0.00019178,2]
[315160190,1708896632634,-500.35166173,0.00019178,2]
[315160191,1708896632643,-500.0,0.00019178,2]
[315160192,1708896632652,-500.0,0.00019178,2]
[315160193,1708896632662,-500.0,0.00019178,2]
[315160194,1708896632671,-500.0,0.00019178,2]
[315160195,1708896632681,-500.45932611,0.00019178,2]
[315160196,1708896632691,-500.0,0.00019178,2]
[315160197,1708896632701,-500.0,0.00019178,2]
[315160198,1708896632710,-500.0,0.00019178,2]
[315160199,1708896632719,-500.0,0.00019178,2]
[315160200,1708896632728,-500.0,0.00019178,2]
[315160201,1708896632737,-500.0,0.00019178,2]
[315160202,1708896632747,-156.12047432,0.00019178,2]
[315160203,1708896632756,-500.0,0.00019178,2]
[315160204,1708896632765,-500.0,0.00019178,2]
[315160205,1708896632775,-503.55152678,0.00019178,2]
[315160206,1708896632784,-500.0,0.00019178,2]
[315160207,1708896632793,-500.0,0.00019178,2]
[315160208,1708896632803,-500.0,0.00019178,2]
[315160209,1708896632812,-500.0,0.00019178,2]
[315160210,1708896632821,-500.0,0.00019178,2]
[315160211,1708896632830,-500.0,0.00019178,2]
[315160212,1708896632839,-500.0,0.00019178,2]
[315160213,1708896632848,-500.0,0.00019178,2]
[315160214,1708896632858,-500.0,0.00019178,2]
[315160215,1708896632867,-500.0,0.00019178,2]
[315160216,1708896632876,-500.0,0.00019178,2]
[315160217,1708896632885,-500.0,0.00019178,2]
[315160218,1708896632894,-500.0,0.00019178,2]
[315160219,1708896632903,-500.0,0.00019178,2]
[315160220,1708896632912,-500.0,0.00019178,2]
[315160221,1708896632921,-500.0,0.00019178,2]
[315160222,1708896632931,-500.0,0.00019178,2]
[315160223,1708896632940,-500.0,0.00019178,2]
[315160224,1708896632950,-500.0,0.00019178,2]
[315160225,1708896632959,-649.74738865,0.00019178,2]
[315160226,1708896632968,-500.0,0.00019178,2]
[315160227,1708896632977,-500.0,0.00019178,2]
[315160228,1708896632986,-500.0,0.00019178,2]
[315160229,1708896632998,-500.0,0.00019178,2]
[315160230,1708896633012,-500.0,0.00019178,2]
[315160231,1708896633026,-500.0,0.00019178,2]
[315160232,1708896633039,-500.0,0.00019178,2]
[315160233,1708896633052,-500.0,0.00019178,2]
[315160234,1708896633064,-192.18667291,0.00019178,2]
[315160252,1708896638254,-307.81332709,0.00019178,2]
[315160253,1708896638266,-500.0,0.00019178,2]
[315160254,1708896638276,-500.0,0.00019178,2]
[315160255,1708896638289,-500.0,0.00019178,2]
[315160256,1708896638300,-500.0,0.00019178,2]
[315160257,1708896638311,-500.0,0.00019178,2]
[315160258,1708896638321,-500.0,0.00019178,2]
[315160259,1708896638332,-500.0,0.00019178,2]
[315160260,1708896638344,-500.0,0.00019178,2]
[315160261,1708896638355,-500.0,0.00019178,2]
[315160262,1708896638365,-500.0,0.00019178,2]
[315160263,1708896638377,-500.0,0.00019178,2]
[315160264,1708896638388,-500.0,0.00019178,2]
[315160265,1708896638398,-500.0,0.00019178,2]
[315160266,1708896638409,-500.28098857,0.00019178,2]
[315160267,1708896638419,-500.0,0.00019178,2]
[315160268,1708896638432,-500.0,0.00019178,2]
[315160269,1708896638443,-500.0,0.00019178,2]
[315160270,1708896638453,-500.0,0.00019178,2]
[315160271,1708896638465,-500.0,0.00019178,2]
[315160272,1708896638476,-216.17179724,0.00019178,2]
[315160273,1708896638486,-500.0,0.00019178,2]
[315160274,1708896638497,-500.0,0.00019178,2]
[315160275,1708896638508,-500.0,0.00019178,2]
[315160276,1708896638519,-500.0,0.00019178,2]
[315160277,1708896638530,-500.0,0.00019178,2]
[315160278,1708896638541,-500.0,0.00019178,2]
[315160279,1708896638552,-368.47185558,0.00019178,2]
[315160280,1708896638564,-500.0,0.00019178,2]
[315160281,1708896638575,-243.58118859,0.00019178,2]
[315160282,1708896638586,-500.0,0.00019178,2]
[315160283,1708896638745,-500.0,0.00019178,2]
[315160284,1708896638755,-500.0,0.00019178,2]
[315160285,1708896638765,-177.06876316,0.00019178,2]
[315160286,1708896638774,-500.0,0.00019178,2]
[315160287,1708896638783,-500.0,0.00019178,2]
[315160288,1708896638792,-500.0,0.00019178,2]
[315160289,1708896638801,-500.0,0.00019178,2]
[315160290,1708896638811,-500.0,0.00019178,2]
[315160291,1708896638820,-319.09963093,0.00019178,2]
[315160292,1708896638829,-500.0,0.00019178,2]
[315160293,1708896638838,-541.89,0.00019178,2]
[315160294,1708896638847,-500.0,0.00019178,2]
[315160295,1708896638857,-500.0,0.00019178,2]
[315160296,1708896638866,-506.34387473,0.00019178,2]
[315160297,1708896638875,-500.0,0.00019178,2]
[315160298,1708896638885,-500.0,0.00019178,2]
[315160299,1708896638894,-500.0,0.00019178,2]
[315160300,1708896638903,-500.0,0.00019178,2]
[315160301,1708896638913,-500.0,0.00019178,2]
[315160302,1708896638923,-500.0,0.00019178,2]
[315160303,1708896638934,-500.0,0.00019178,2]
[315160304,1708896638944,-500.0,0.00019178,2]
[315160305,1708896638954,-500.0,0.00019178,2]
[315160306,1708896638963,-500.0,0.00019178,2]
[315160307,1708896638974,-500.0,0.00019178,2]
[315160308,1708896638983,-500.0,0.00019178,2]
[315160309,1708896638993,-528.23713786,0.00019178,2]
[315160310,1708896639002,-500.0,0.00019178,2]
[315160311,1708896639012,-500.0,0.00019178,2]
[315160312,1708896639021,-500.0,0.00019178,2]
[315160313,1708896639031,-234.52147682,0.00019178,2]
[315160314,1708896639040,-500.0,0.00019178,2]
[315160315,1708896639050,-500.0,0.00019178,2]
[315160316,1708896639059,-500.0,0.00019178,2]
[315160317,1708896639068,-500.0,0.00019178,2]
[315160318,1708896639077,-500.0,0.00019178,2]
[315160319,1708896639087,-500.34278098,0.00019178,2]
[315160320,1708896639096,-500.0,0.00019178,2]
[315160321,1708896639105,-500.0,0.00019178,2]
[315160322,1708896639114,-500.0,0.00019178,2]
[315160323,1708896639123,-500.0,0.00019178,2]
[315160324,1708896639133,-500.0,0.00019178,2]
[315160325,1708896639143,-266.29835762,0.00019178,2]
[315160326,1708896639152,-500.0,0.00019178,2]
[315160327,1708896639161,-500.0,0.00019178,2]
[315160328,1708896639170,-500.0,0.00019178,2]
[315160329,1708896639181,-2476.65,0.00019178,2]
[315160330,1708896639191,-151.0,0.00019178,2]
[315160331,1708896639200,-500.0,0.00019178,2]
[315160332,1708896639211,-1114.48,0.00019178,2]
[315160333,1708896639222,-500.0,0.00019178,2]
[315160334,1708896639232,-500.0,0.00019178,2]
[315160335,1708896639245,-500.0,0.00019178,2]
[315160336,1708896639254,-500.0,0.00019178,2]
[315160337,1708896639264,-502.42542064,0.00019178,2]
[315160338,1708896639274,-500.0,0.00019178,2]
[315160339,1708896639285,-500.0,0.00019178,2]
[315160340,1708896639298,-213.91899421,0.00019178,2]
[315160341,1708896639308,-719.92,0.00019178,2]
[315160342,1708896639318,-500.0,0.00019178,2]
[315160343,1708896639330,-500.0,0.00019178,2]
[315160344,1708896639341,-500.0,0.00019178,2]
[315160345,1708896639350,-500.0,0.00019178,2]
[315160346,1708896639360,-602.69,0.00019178,2]
[315160347,1708896639370,-500.0,0.00019178,2]
[315160348,1708896639382,-500.0,0.00019178,2]
[315160349,1708896639391,-500.0,0.00019178,2]
[315160350,1708896639400,-495.26917677,0.00019178,2]
[315160351,1708896639410,-500.0,0.00019178,2]
[315160352,1708896639419,-500.0,0.00019178,2]
[315160353,1708896639430,-1144.16,0.00019178,2]
[315160354,1708896639441,-500.0,0.00019178,2]
[315160355,1708896639451,-500.0,0.00019178,2]
[315160356,1708896639460,-500.0,0.00019178,2]
[315160357,1708896639470,-500.0,0.00019178,2]
[315160358,1708896639479,-497.28656827,0.00019178,2]
[315160359,1708896639488,-233.97079204,0.00019178,2]
[315160360,1708896639497,-500.0,0.00019178,2]
[315160361,1708896639506,-500.0,0.00019178,2]
[315160362,1708896639516,-500.38609423,0.00019178,2]
[315160363,1708896639525,-520.36,0.00019178,2]
[315160364,1708896639536,-500.0,0.00019178,2]
[315160365,1708896639546,-500.0,0.00019178,2]
[315160366,1708896639555,-500.0,0.00019178,2]
[315160367,1708896639565,-500.0,0.00019178,2]
[315160368,1708896639575,-500.0,0.00019178,2]
[315160369,1708896639585,-499.60684837,0.00019178,2]
[315160370,1708896639594,-500.0,0.00019178,2]
[315160371,1708896639602,-500.0,0.00019178,2]
[315160372,1708896639612,-500.0,0.00019178,2]
[315160373,1708896639621,-243.58118859,0.00019178,2]
[315160374,1708896639630,-500.0,0.00019178,2]
[315160375,1708896639639,-500.0,0.00019178,2]
[315160376,1708896639648,-500.0,0.00019178,2]
[315160377,1708896639658,-500.0,0.00019178,2]
[315160378,1708896639667,-500.0,0.00019178,2]
[315160379,1708896639676,-500.0,0.00019178,2]
[315160380,1708896639686,-500.3023898,0.00019178,2]
[315160381,1708896639696,-500.0,0.00019178,2]
[315160382,1708896639706,-500.0,0.00019178,2]
[315160383,1708896639715,-500.0,0.00019178,2]
[315160384,1708896639724,-500.0,0.00019178,2]
[315160385,1708896639733,-319.09963093,0.00019178,2]
[315160386,1708896639742,-500.0,0.00019178,2]
[315160387,1708896639751,-500.0,0.00019178,2]
[315160388,1708896639761,-500.0,0.00019178,2]
[315160389,1708896639770,-500.34794336,0.00019178,2]
[315160390,1708896639779,-500.0,0.00019178,2]
[315160391,1708896639788,-500.0,0.00019178,2]
[315160392,1708896639797,-500.0,0.00019178,2]
[315160393,1708896639806,-276.61991267,0.00019178,2]
[315160394,1708896639815,-500.0,0.00019178,2]
[315160395,1708896639825,-500.0,0.00019178,2]
[315160396,1708896639835,-500.0,0.00019178,2]
[315160397,1708896639844,-500.0,0.00019178,2]
[315160398,1708896639853,-500.0,0.00019178,2]
[315160399,1708896639863,-500.0,0.00019178,2]
[315160400,1708896639872,-283.11226416,0.00019178,2]
[315160401,1708896639881,-500.0,0.00019178,2]
[315160402,1708896639891,-500.0,0.00019178,2]
[315160403,1708896639900,-500.29127605,0.00019178,2]
[315160404,1708896639910,-1000.0,0.00019178,2]
[315160405,1708896639919,-500.0,0.00019178,2]
[315160406,1708896639928,-231.37028455,0.00019178,2]
[315160407,1708896639938,-500.0,0.00019178,2]
[315160408,1708896639947,-500.62885476,0.00019178,2]
[315160409,1708896639956,-500.0,0.00019178,2]
[315160410,1708896639966,-500.0,0.00019178,2]
[315160411,1708896639975,-500.0,0.00019178,2]
[315160412,1708896639984,-500.0,0.00019178,2]
[315160413,1708896639993,-500.0,0.00019178,2]
[315160414,1708896640003,-496.77878203,0.00019178,2]
[315160415,1708896640012,-500.0,0.00019178,2]
[315160416,1708896640023,-406.24967505,0.00019178,2]
[315160417,1708896640033,-409.70428349,0.00019178,2]
[315160418,1708896640044,-500.0,0.00019178,2]
[315160419,1708896640054,-500.0,0.00019178,2]
[315160420,1708896640063,-1692.88,0.00019178,2]
[315160421,1708896640073,-500.0,0.00019178,2]
[315160422,1708896640082,-500.0,0.00019178,2]
[315160423,1708896640091,-500.0,0.00019178,2]
[315160424,1708896640100,-500.0,0.00019178,2]
[315160425,1708896640109,-500.0,0.00019178,2]
[315160426,1708896640119,-500.0,0.00019178,2]
[315160427,1708896640128,-500.0,0.00019178,2]
[315160428,1708896640137,-500.0,0.00019178,2]
[315160429,1708896640147,-500.0,0.00019178,2]
[315160430,1708896640157,-500.0,0.00019178,2]
[315160431,1708896640166,-500.0,0.00019178,2]
[315160432,1708896640176,-500.0,0.00019178,2]
[315160433,1708896640187,-500.46226267,0.00019178,2]
[315160434,1708896640197,-500.0,0.00019178,2]
[315160435,1708896640206,-500.0,0.00019178,2]
[315160436,1708896640215,-500.0,0.00019178,2]
[315160437,1708896640224,-500.69074153,0.00019178,2]
[315160438,1708896640233,-500.0,0.00019178,2]
[315160439,1708896640245,-500.0,0.00019178,2]
[315160440,1708896640255,-500.0,0.00019178,2]
[315160441,1708896640264,-515.24992095,0.00019178,2]
[315160442,1708896640272,-1403.83,0.00019178,2]
[315160443,1708896640284,-500.0,0.00019178,2]
[315160444,1708896640295,-503.20204968,0.00019178,2]
[315160445,1708896640304,-500.0,0.00019178,2]
[315160446,1708896640313,-500.0,0.00019178,2]
[315160447,1708896640322,-500.66949718,0.00019178,2]
[315160448,1708896640334,-500.0,0.00019178,2]
[315160449,1708896640345,-500.0,0.00019178,2]
[315160450,1708896640354,-500.0,0.00019178,2]
[315160451,1708896640363,-500.0,0.00019178,2]
[315160452,1708896640373,-500.0,0.00019178,2]
[315160453,1708896640383,-500.0,0.00019178,2]
[315160454,1708896640392,-500.0,0.00019178,2]
[315160455,1708896640401,-500.0,0.00019178,2]
[315160456,1708896640411,-500.0,0.00019178,2]
[315160457,1708896640420,-500.0,0.00019178,2]
[315160458,1708896640429,-212.87883413,0.00019178,2]
[315160459,1708896640439,-647.50116398,0.00019178,2]
[315160460,1708896640448,-500.62528751,0.00019178,2]
[315160461,1708896640460,-355.86350824,0.00019178,2]
[315160462,1708896640468,-500.0,0.00019178,2]
[315160463,1708896640478,-500.0,0.00019178,2]
[315160464,1708896640487,-500.0,0.00019178,2]
[315160465,1708896640498,-500.0,0.00019178,2]
[315160466,1708896640507,-500.0,0.00019178,2]
[315160467,1708896640516,-500.0,0.00019178,2]
[315160468,1708896640525,-633.36,0.00019178,2]
[315160469,1708896640534,-589.1944947,0.00019178,2]
[315160470,1708896640544,-500.0,0.00019178,2]
[315160471,1708896640553,-500.0,0.00019178,2]
[315160472,1708896640562,-500.0,0.00019178,2]
[315160474,1708896640571,-500.9993525,0.00019178,2]
[315160475,1708896640580,-500.0,0.00019178,2]
[315160476,1708896640589,-500.0,0.00019178,2]
[315160477,1708896640598,-500.0,0.00019178,2]
[315160478,1708896640607,-685.75,0.00019178,2]
[315160479,1708896640616,-500.0,0.00019178,2]
[315160480,1708896640626,-242.68643085,0.00019178,2]
[315160481,1708896640635,-519.59807134,0.00019178,2]
[315160482,1708896640644,-501.35115534,0.00019178,2]
[315160483,1708896640654,-500.0,0.00019178,2]
[315160484,1708896640663,-500.0,0.00019178,2]
[315160485,1708896640673,-500.0,0.00019178,2]
[315160486,1708896640684,-500.0,0.00019178,2]
[315160487,1708896640694,-500.0,0.00019178,2]
[315160488,1708896640704,-391.22819217,0.00019178,2]
[315160489,1708896640713,-500.0,0.00019178,2]
[315160490,1708896640723,-500.0,0.00019178,2]
[315160491,1708896640734,-500.0,0.00019178,2]
[315160492,1708896640744,-500.0,0.00019178,2]
[315160493,1708896640754,-500.0,0.00019178,2]
[315160494,1708896640764,-500.0,0.00019178,2]
[315160495,1708896640774,-500.0,0.00019178,2]
[315160496,1708896640784,-500.0,0.00019178,2]
[315160497,1708896640794,-500.0,0.00019178,2]
[315160498,1708896640803,-500.0,0.00019178,2]
[315160499,1708896640813,-500.0,0.00019178,2]
[315160500,1708896640823,-500.0,0.00019178,2]
[315160501,1708896640832,-1232.06,0.00019178,2]
[315160502,1708896640841,-500.0,0.00019178,2]
[315160503,1708896640851,-166.80363752,0.00019178,2]
[315160504,1708896640860,-501.45,0.00019178,2]
[315160505,1708896640870,-500.0,0.00019178,2]
[315160506,1708896640879,-500.0,0.00019178,2]
[315160507,1708896640889,-500.0,0.00019178,2]
[315160508,1708896640898,-500.0,0.00019178,2]
[315160509,1708896640907,-500.0,0.00019178,2]
[315160510,1708896640917,-618.91,0.00019178,2]
[315160511,1708896640927,-500.0,0.00019178,2]
[315160512,1708896640938,-500.0,0.00019178,2]
[315160513,1708896640948,-500.0,0.00019178,2]
[315160514,1708896640958,-1445.09,0.00019178,2]
[315160515,1708896640968,-500.0,0.00019178,2]
[315160516,1708896640979,-500.0,0.00019178,2]
[315160517,1708896640988,-500.0,0.00019178,2]
[315160518,1708896640997,-500.0,0.00019178,2]
[315160519,1708896641007,-243.58118859,0.00019178,2]
[315160520,1708896641016,-500.0,0.00019178,2]
[315160521,1708896641027,-500.0,0.00019178,2]
[315160522,1708896641038,-500.66398244,0.00019178,2]
[315160523,1708896641049,-500.0,0.00019178,2]
[315160524,1708896641059,-506.70986665,0.00019178,2]
[315160525,1708896641068,-500.0,0.00019178,2]
[315160526,1708896641077,-500.0,0.00019178,2]
[315160527,1708896641086,-500.0,0.00019178,2]
[315160528,1708896641095,-1995.77,0.00019178,2]
[315160529,1708896641105,-500.0,0.00019178,2]
[315160530,1708896641116,-500.0,0.00019178,2]
[315160531,1708896641125,-500.0,0.00019178,2]
[315160532,1708896641134,-2193.07,0.00019178,2]
[315160533,1708896641143,-500.0,0.00019178,2]
[315160534,1708896641152,-500.0,0.00019178,2]
[315160535,1708896641162,-2102.65,0.00019178,2]
[315160536,1708896641171,-403.61859012,0.00019178,2]
[315160537,1708896641183,-500.0,0.00019178,2]
[315160538,1708896641192,-500.0,0.00019178,2]
[315160539,1708896641202,-500.0,0.00019178,2]
[315160540,1708896641212,-500.0,0.00019178,2]
[315160541,1708896641222,-500.0,0.00019178,2]
[315160542,1708896641231,-500.0,0.00019178,2]
[315160543,1708896641241,-500.0,0.00019178,2]
[315160544,1708896641251,-500.0,0.00019178,2]
[315160545,1708896641261,-319.09963093,0.00019178,2]
[315160546,1708896641271,-1572.91,0.00019178,2]
[315160547,1708896641280,-368.48758608,0.00019178,2]
[315160548,1708896641291,-500.0,0.00019178,2]
[315160549,1708896641301,-500.0,0.00019178,2]
[315160550,1708896641310,-500.0,0.00019178,2]
[315160551,1708896641319,-542.65859334,0.00019178,2]
[315160552,1708896641329,-500.0,0.00019178,2]
[315160553,1708896641339,-500.0,0.00019178,2]
[315160554,1708896641348,-377.86302329,0.00019178,2]
[315160555,1708896641357,-500.0,0.00019178,2]
[315160556,1708896641368,-500.0,0.00019178,2]
[315160557,1708896641377,-1000.0,0.00019178,2]
[315160558,1708896641387,-500.0,0.00019178,2]
[315160559,1708896641397,-500.0,0.00019178,2]
[315160560,1708896641407,-500.0,0.00019178,2]
[315160561,1708896641416,-8871.94,0.00019178,2]
[315160562,1708896641426,-500.0,0.00019178,2]
[315160563,1708896641441,-500.0,0.00019178,2]
[315160564,1708896641450,-500.0,0.00019178,2]
[315160566,1708896641564,-500.0,0.00019178,2]
[315160567,1708896641574,-500.0,0.00019178,2]
[315160568,1708896641584,-500.0,0.00019178,2]
[315160569,1708896641594,-500.19563633,0.00019178,2]
[315160570,1708896641603,-500.0,0.00019178,2]
[315160571,1708896641612,-500.0,0.00019178,2]
[315160572,1708896641621,-3183.04,0.00019178,2]
[315160573,1708896641630,-500.0,0.00019178,2]
[315160574,1708896641640,-500.0,0.00019178,2]
[315160575,1708896641649,-500.0,0.00019178,2]
[315160576,1708896641658,-500.0,0.00019178,2]
[315160577,1708896641668,-500.0,0.00019178,2]
[315160578,1708896641677,-268.39371739,0.00019178,2]
[315160579,1708896641688,-501.56260452,0.00019178,2]
[315160580,1708896641697,-500.0,0.00019178,2]
[315160581,1708896641706,-500.0,0.00019178,2]
[315160582,1708896641715,-500.0,0.00019178,2]
[315160583,1708896641725,-17277.7,0.00019178,2]
[315160584,1708896641733,-500.54304507,0.00019178,2]
[315160585,1708896641743,-500.0,0.00019178,2]
[315160586,1708896641751,-500.0,0.00019178,2]
[315160587,1708896641760,-500.0,0.00019178,2]
[315160588,1708896641770,-548.4839743,0.00019178,2]
[315160589,1708896641779,-500.9168553,0.00019178,2]
[315160590,1708896641788,-500.0,0.00019178,2]
[315160591,1708896641797,-1668.96,0.00019178,2]
[315160592,1708896641807,-500.0,0.00019178,2]
[315160593,1708896641816,-500.0,0.00019178,2]
[315160594,1708896641826,-1084.32,0.00019178,2]
[315160595,1708896641834,-500.0,0.00019178,2]
[315160596,1708896641843,-500.0,0.00019178,2]
[315160597,1708896641853,-500.0,0.00019178,2]
[315160598,1708896641862,-1346.89,0.00019178,2]
[315160599,1708896641872,-500.0,0.00019178,2]
[315160600,1708896641881,-1658.31,0.00019178,2]
[315160601,1708896641890,-500.0,0.00019178,2]
[315160602,1708896641899,-187.20221519,0.00019178,2]
[315160603,1708896641909,-500.0,0.00019178,2]
[315160604,1708896641918,-500.0,0.00019178,2]
[315160605,1708896641928,-500.0,0.00019178,2]
[315160606,1708896641938,-6424.74,0.00019178,2]
[315160607,1708896641948,-500.0,0.00019178,2]
[315160608,1708896641957,-500.0,0.00019178,2]
[315160609,1708896641967,-500.0,0.00019178,2]
[315160610,1708896641977,-541.66,0.00019178,2]
[315160611,1708896641986,-500.0,0.00019178,2]
[315160612,1708896641995,-500.0,0.00019178,2]
[315160613,1708896642005,-500.0,0.00019178,2]
[315160614,1708896642014,-9311.57,0.00019178,2]
[315160615,1708896642023,-500.0,0.00019178,2]
[315160616,1708896642033,-500.0,0.00019178,2]
[315160617,1708896642043,-500.0,0.00019178,2]
[315160618,1708896642053,-1845.4,0.00019178,2]
[315160619,1708896642062,-500.0,0.00019178,2]
[315160620,1708896642072,-500.0,0.00019178,2]
[315160621,1708896642082,-500.0,0.00019178,2]
[315160622,1708896642091,-500.0,0.00019178,2]